[Event "*** Titled Tuesday Blitz"]
[Site "Chess.com"]
[Date "2018.11.06"]
[Round "8"]
[White "OparinGrigoriy"]
[Black "kuli4ik"]
[Result "1-0"]
[WhiteElo "2924"]
[BlackElo "2793"]
[TimeControl "180+2"]
[EndTime "14:53:31 PST"]
[Termination "OparinGrigoriy won on time"]

1. Nf3 {[%clk 0:03:01.9]} 1... Nc6 {[%clk 0:03:01.2]} 2. g3 {[%clk 0:03:03.5]}
2... e5 {[%clk 0:03:02]} 3. e4 {[%clk 0:03:03.7]} 3... Bc5 {[%clk 0:03:02.6]} 4.
Bg2 {[%clk 0:03:04.6]} 4... d6 {[%clk 0:03:03.5]} 5. c3 {[%clk 0:03:04.7]} 5...
Bb6 {[%clk 0:03:03.5]} 6. O-O {[%clk 0:03:04.3]} 6... Nf6 {[%clk 0:03:02.8]} 7.
d4 {[%clk 0:03:05.3]} 7... O-O {[%clk 0:03:03.6]} 8. Qd3 {[%clk 0:02:57.1]} 8...
exd4 {[%clk 0:02:58.5]} 9. Nxd4 {[%clk 0:02:55.9]} 9... Nxd4 {[%clk 0:02:56.7]}
10. cxd4 {[%clk 0:02:57.8]} 10... Re8 {[%clk 0:02:57.7]} 11. Nc3 {[%clk
0:02:58.2]} 11... c6 {[%clk 0:02:48.6]} 12. Bf4 {[%clk 0:02:52.1]} 12... Bg4
{[%clk 0:02:43.4]} 13. h3 {[%clk 0:02:52.8]} 13... Be6 {[%clk 0:02:44.1]} 14.
Rad1 {[%clk 0:02:49.4]} 14... h6 {[%clk 0:02:41.3]} 15. Rfe1 {[%clk 0:02:50.1]}
15... Rc8 {[%clk 0:02:39.3]} 16. Be3 {[%clk 0:02:26.1]} 16... Ba5 {[%clk
0:02:37]} 17. a3 {[%clk 0:02:25.7]} 17... Bb3 {[%clk 0:02:34.4]} 18. Rc1 {[%clk
0:02:25.7]} 18... b5 {[%clk 0:02:33.7]} 19. f4 {[%clk 0:02:17.4]} 19... a6
{[%clk 0:02:24]} 20. Bf2 {[%clk 0:02:17.3]} 20... Qd7 {[%clk 0:02:14.6]} 21. Re3
{[%clk 0:02:04.5]} 21... Bc4 {[%clk 0:01:46.5]} 22. Qd1 {[%clk 0:02:05.3]} 22...
Qd8 {[%clk 0:01:23.6]} 23. b3 {[%clk 0:01:58.6]} 23... Be6 {[%clk 0:01:24.1]}
24. f5 {[%clk 0:01:59.8]} 24... Bd7 {[%clk 0:01:25.3]} 25. g4 {[%clk 0:02:01.2]}
25... Nh7 {[%clk 0:01:15.6]} 26. Re2 {[%clk 0:01:54.4]} 26... Bb6 {[%clk
0:00:56.2]} 27. Qd3 {[%clk 0:01:47]} 27... a5 {[%clk 0:00:56.4]} 28. Rce1 {[%clk
0:01:46.9]} 28... b4 {[%clk 0:00:55.4]} 29. axb4 {[%clk 0:01:42.5]} 29... axb4
{[%clk 0:00:56.6]} 30. Na4 {[%clk 0:01:43.8]} 30... Ba7 {[%clk 0:00:56]} 31. e5
{[%clk 0:01:39.3]} 31... dxe5 {[%clk 0:00:52.5]} 32. dxe5 {[%clk 0:01:41.2]}
32... Bxf2+ {[%clk 0:00:53.3]} 33. Rxf2 {[%clk 0:01:41.1]} 33... c5 {[%clk
0:00:54.4]} 34. Nb2 {[%clk 0:01:41.1]} 34... Qc7 {[%clk 0:00:50.9]} 35. Rfe2
{[%clk 0:01:24]} 35... Bc6 {[%clk 0:00:51.7]} 36. e6 {[%clk 0:01:22.4]} 36...
fxe6 {[%clk 0:00:49.8]} 37. Rxe6 {[%clk 0:01:22.5]} 37... Rxe6 {[%clk
0:00:49.4]} 38. Rxe6 {[%clk 0:01:24.4]} 38... Bxg2 {[%clk 0:00:49.7]} 39. Kxg2
{[%clk 0:01:25.7]} 39... Ng5 {[%clk 0:00:45.6]} 40. Rd6 {[%clk 0:01:25.7]} 40...
Re8 {[%clk 0:00:35.1]} 41. Nc4 {[%clk 0:01:24.7]} 41... Kh8 {[%clk 0:00:31.4]}
42. f6 {[%clk 0:00:41.1]} 42... Qb7+ {[%clk 0:00:21.9]} 43. Qd5 {[%clk
0:00:35.4]} 43... Qxd5+ {[%clk 0:00:22.8]} 44. Rxd5 {[%clk 0:00:37.3]} 44...
gxf6 {[%clk 0:00:22.7]} 45. h4 {[%clk 0:00:38.3]} 45... Ne4 {[%clk 0:00:23.2]}
46. h5 {[%clk 0:00:36.5]} 46... Re7 {[%clk 0:00:23.5]} 47. Ne3 {[%clk
0:00:29.2]} 47... Nc3 {[%clk 0:00:23.5]} 48. Rd8+ {[%clk 0:00:29]} 48... Kh7
{[%clk 0:00:24.9]} 49. Nf5 {[%clk 0:00:30.3]} 49... Rc7 {[%clk 0:00:22.4]} 50.
Rd6 {[%clk 0:00:30.6]} 50... c4 {[%clk 0:00:21.2]} 51. bxc4 {[%clk 0:00:31]}
51... Rb7 {[%clk 0:00:21.6]} 52. c5 {[%clk 0:00:28]} 52... b3 {[%clk 0:00:22.9]}
53. c6 {[%clk 0:00:26.7]} 53... b2 {[%clk 0:00:11]} 54. cxb7 {[%clk 0:00:27.8]}
54... b1=Q {[%clk 0:00:12.2]} 55. Rd7+ {[%clk 0:00:29.4]} 55... Kg8 {[%clk
0:00:13.5]} 56. Rd8+ {[%clk 0:00:24]} 56... Kf7 {[%clk 0:00:14.9]} 57. b8=Q
{[%clk 0:00:24.8]} 57... Qe4+ {[%clk 0:00:16.1]} 58. Kh2 {[%clk 0:00:23.3]}
58... Qe2+ {[%clk 0:00:15.1]} 59. Kh3 {[%clk 0:00:22.3]} 59... Qf1+ {[%clk
0:00:16.4]} 60. Kh4 {[%clk 0:00:22.1]} 60... Qh1+ {[%clk 0:00:16.9]} 61. Kg3
{[%clk 0:00:22.2]} 61... Qg1+ {[%clk 0:00:17.7]} 62. Kf3 {[%clk 0:00:22.3]}
62... Qf1+ {[%clk 0:00:18.4]} 63. Ke3 {[%clk 0:00:23.1]} 63... Qe2+ {[%clk
0:00:19.2]} 64. Kd4 {[%clk 0:00:24]} 64... Nb5+ {[%clk 0:00:10.5]} 65. Kc5
{[%clk 0:00:24.7]} 65... Qc2+ {[%clk 0:00:03.9]} 66. Kb6 {[%clk 0:00:21.6]}
66... Qb3 {[%clk 0:00:03.3]} 67. Rd7+ {[%clk 0:00:18.3]} 67... Ke6 {[%clk
0:00:04.5]} 68. Qg8+ {[%clk 0:00:19.8]} 68... Kxd7 {[%clk 0:00:05.3]} 69. Qxb3
{[%clk 0:00:21.7]} 1-0

[Event "*** Titled Tuesday Blitz"]
[Site "Chess.com"]
[Date "2018.11.06"]
[Round "8"]
[White "severomorskij"]
[Black "Ar4uha"]
[Result "1/2-1/2"]
[WhiteElo "2705"]
[BlackElo "2621"]
[TimeControl "180+2"]
[EndTime "14:53:33 PST"]
[Termination "Game drawn by repetition"]

1. d4 {[%clk 0:03:01.9]} 1... Nf6 {[%clk 0:02:59.1]} 2. Bg5 {[%clk 0:03:02.2]}
2... e6 {[%clk 0:03:01]} 3. e4 {[%clk 0:03:02.4]} 3... h6 {[%clk 0:03:02.1]} 4.
Bxf6 {[%clk 0:03:03.1]} 4... Qxf6 {[%clk 0:03:04]} 5. c3 {[%clk 0:03:04.3]} 5...
d5 {[%clk 0:03:04.6]} 6. Bd3 {[%clk 0:03:03]} 6... c5 {[%clk 0:03:05.7]} 7. Nf3
{[%clk 0:03:02.6]} 7... Nc6 {[%clk 0:03:05.7]} 8. O-O {[%clk 0:03:00.2]} 8...
Bd7 {[%clk 0:02:43.8]} 9. exd5 {[%clk 0:02:58.3]} 9... exd5 {[%clk 0:02:44.8]}
10. Re1+ {[%clk 0:02:57.6]} 10... Be7 {[%clk 0:02:46.3]} 11. dxc5 {[%clk
0:02:58.5]} 11... O-O {[%clk 0:02:47.9]} 12. b4 {[%clk 0:02:56]} 12... Rfe8
{[%clk 0:02:49.1]} 13. a3 {[%clk 0:02:48]} 13... a5 {[%clk 0:02:49.6]} 14. b5
{[%clk 0:02:35.9]} 14... Nb8 {[%clk 0:02:50.8]} 15. Nbd2 {[%clk 0:02:10]} 15...
Qxc3 {[%clk 0:02:50.6]} 16. Nb3 {[%clk 0:02:06.8]} 16... a4 {[%clk 0:02:51.1]}
17. Nbd4 {[%clk 0:02:06.8]} 17... Bxc5 {[%clk 0:02:46.8]} 18. Rxe8+ {[%clk
0:01:08.3]} 18... Bxe8 {[%clk 0:02:48.7]} 19. Nf5 {[%clk 0:01:09.3]} 19... Nd7
{[%clk 0:02:42.7]} 20. g3 {[%clk 0:01:10]} 20... Ne5 {[%clk 0:02:42]} 21. Nxe5
{[%clk 0:01:09]} 21... Qxe5 {[%clk 0:02:43.9]} 22. Ra2 {[%clk 0:01:06]} 22...
Bd7 {[%clk 0:02:44.1]} 23. Qf3 {[%clk 0:01:03.9]} 23... Re8 {[%clk 0:02:34.8]}
24. Re2 {[%clk 0:01:03.9]} 24... Qa1+ {[%clk 0:02:35.9]} 25. Kg2 {[%clk
0:01:05.4]} 25... Rxe2 {[%clk 0:02:30]} 26. Qxe2 {[%clk 0:01:06]} 26... Qf6
{[%clk 0:02:28.4]} 27. Qf3 {[%clk 0:01:02.9]} 27... Be6 {[%clk 0:02:29]} 28. Qf4
{[%clk 0:00:52.2]} 28... Bxa3 {[%clk 0:02:21.1]} 29. Qxa4 {[%clk 0:00:44.8]}
29... Bxf5 {[%clk 0:02:22.5]} 30. Qxa3 {[%clk 0:00:43]} 30... Bxd3 {[%clk
0:02:18.1]} 31. Qxd3 {[%clk 0:00:44.9]} 31... Qe5 {[%clk 0:02:18.1]} 32. Qa3
{[%clk 0:00:21.5]} 32... Qe4+ {[%clk 0:02:16.7]} 33. Kh3 {[%clk 0:00:22.5]}
33... d4 {[%clk 0:02:14.1]} 34. f3 {[%clk 0:00:19.1]} 34... Qf5+ {[%clk
0:02:02.1]} 35. g4 {[%clk 0:00:18.9]} 35... Qd5 {[%clk 0:02:02.9]} 36. Qd3
{[%clk 0:00:19.3]} 36... Qc5 {[%clk 0:01:58.4]} 37. Qe2 {[%clk 0:00:16.5]} 37...
g6 {[%clk 0:01:55.8]} 38. Qe4 {[%clk 0:00:15.3]} 38... b6 {[%clk 0:01:48.4]} 39.
Qc6 {[%clk 0:00:13]} 39... d3 {[%clk 0:01:32]} 40. Qxc5 {[%clk 0:00:10.9]} 40...
bxc5 {[%clk 0:01:33.9]} 41. b6 {[%clk 0:00:12]} 41... d2 {[%clk 0:01:35.8]} 42.
b7 {[%clk 0:00:13.3]} 42... d1=Q {[%clk 0:01:37.7]} 43. b8=Q+ {[%clk 0:00:14.6]}
43... Kh7 {[%clk 0:01:39.6]} 44. Qf4 {[%clk 0:00:11.7]} 44... Qd5 {[%clk
0:01:23.2]} 45. Qf6 {[%clk 0:00:12.4]} 45... Kg8 {[%clk 0:01:16.1]} 46. Kg3
{[%clk 0:00:12.4]} 46... c4 {[%clk 0:01:16.1]} 47. h4 {[%clk 0:00:12.6]} 47...
Qc5 {[%clk 0:01:06]} 48. Qc3 {[%clk 0:00:06.5]} 48... Qd6+ {[%clk 0:00:48.3]}
49. Kf2 {[%clk 0:00:07]} 49... Qc5+ {[%clk 0:00:45.1]} 50. Qe3 {[%clk
0:00:04.3]} 50... Qd5 {[%clk 0:00:20.6]} 51. Qxh6 {[%clk 0:00:03]} 51... c3
{[%clk 0:00:21]} 52. Qe3 {[%clk 0:00:02.9]} 52... c2 {[%clk 0:00:19.9]} 53. h5
{[%clk 0:00:03.2]} 53... gxh5 {[%clk 0:00:18.8]} 54. gxh5 {[%clk 0:00:04]} 54...
Qc4 {[%clk 0:00:18.4]} 55. Qg5+ {[%clk 0:00:04.1]} 55... Kf8 {[%clk 0:00:17.8]}
56. Qd8+ {[%clk 0:00:05.1]} 56... Kg7 {[%clk 0:00:19.3]} 57. Qg5+ {[%clk
0:00:06.7]} 57... Kh7 {[%clk 0:00:20.5]} 58. Qf5+ {[%clk 0:00:06.8]} 58... Kh6
{[%clk 0:00:21.6]} 59. Qf6+ {[%clk 0:00:07.2]} 59... Kxh5 {[%clk 0:00:22.8]} 60.
Qf5+ {[%clk 0:00:08]} 60... Kh6 {[%clk 0:00:24.4]} 61. Qf6+ {[%clk 0:00:09.1]}
61... Kh7 {[%clk 0:00:25.9]} 62. Qf5+ {[%clk 0:00:10.2]} 62... Kh6 {[%clk
0:00:26.2]} 63. Qf6+ {[%clk 0:00:11.3]} 63... Kh5 {[%clk 0:00:26.9]} 64. Qf5+
{[%clk 0:00:12.1]} 64... Kh4 {[%clk 0:00:27.6]} 65. Qf6+ {[%clk 0:00:11.9]}
65... Kh3 {[%clk 0:00:23.8]} 66. Qf5+ {[%clk 0:00:08.9]} 66... Kh4 {[%clk
0:00:25.1]} 67. Qf6+ {[%clk 0:00:09.9]} 67... Kh5 {[%clk 0:00:26.6]} 68. Qf5+
{[%clk 0:00:10.7]} 68... Kh6 {[%clk 0:00:28.1]} 69. Qf6+ {[%clk 0:00:10.4]}
69... Kh7 {[%clk 0:00:29.6]} 70. Qf5+ {[%clk 0:00:11.2]} 70... Kg7 {[%clk
0:00:31]} 71. Qg5+ {[%clk 0:00:12]} 71... Kh8 {[%clk 0:00:32.5]} 72. Qh5+ {[%clk
0:00:10.3]} 72... Kg8 {[%clk 0:00:33.1]} 73. Qg5+ {[%clk 0:00:11.5]} 73... Kf8
{[%clk 0:00:34.3]} 74. Qd8+ {[%clk 0:00:12.2]} 74... Kg7 {[%clk 0:00:35.8]} 75.
Qg5+ {[%clk 0:00:13.6]} 75... Kh7 {[%clk 0:00:37.4]} 76. Qh5+ {[%clk 0:00:14.3]}
76... Kg7 {[%clk 0:00:38.8]} 77. Qg5+ {[%clk 0:00:15.4]} 77... Kf8 {[%clk
0:00:39.8]} 78. Qd8+ {[%clk 0:00:16.3]} 78... Kg7 {[%clk 0:00:41.6]} 79. Qg5+
{[%clk 0:00:16.2]} 1/2-1/2

[Event "*** Titled Tuesday Blitz"]
[Site "Chess.com"]
[Date "2018.11.06"]
[Round "8"]
[White "aquaticpineapples"]
[Black "alishersuleymenov"]
[Result "0-1"]
[WhiteElo "2019"]
[BlackElo "2471"]
[TimeControl "180+2"]
[EndTime "14:53:41 PST"]
[Termination "alishersuleymenov won by checkmate"]

1. d4 {[%clk 0:03:01.9]} 1... Nf6 {[%clk 0:02:59]} 2. Nf3 {[%clk 0:03:02.8]}
2... g6 {[%clk 0:02:57.5]} 3. Nbd2 {[%clk 0:03:03.7]} 3... d5 {[%clk 0:02:57]}
4. e3 {[%clk 0:03:04.9]} 4... Bg7 {[%clk 0:02:54.7]} 5. b4 {[%clk 0:03:06]} 5...
O-O {[%clk 0:02:56.4]} 6. c4 {[%clk 0:03:06.8]} 6... a5 {[%clk 0:02:54.4]} 7. b5
{[%clk 0:03:07.6]} 7... c5 {[%clk 0:02:54.6]} 8. Bb2 {[%clk 0:02:59]} 8... cxd4
{[%clk 0:02:47.3]} 9. Nxd4 {[%clk 0:02:55.9]} 9... e5 {[%clk 0:02:41.5]} 10.
N4f3 {[%clk 0:02:55.6]} 10... e4 {[%clk 0:02:42.4]} 11. Nd4 {[%clk 0:02:55.8]}
11... a4 {[%clk 0:02:42.1]} 12. a3 {[%clk 0:02:50.7]} 12... Bg4 {[%clk
0:02:35.2]} 13. Be2 {[%clk 0:02:48.5]} 13... Bxe2 {[%clk 0:02:36.6]} 14. Qxe2
{[%clk 0:02:49.6]} 14... Nbd7 {[%clk 0:02:38]} 15. O-O {[%clk 0:02:45.7]} 15...
Nc5 {[%clk 0:02:37.4]} 16. cxd5 {[%clk 0:02:38.6]} 16... Qxd5 {[%clk 0:02:39.3]}
17. Qc4 {[%clk 0:02:36.5]} 17... Nd3 {[%clk 0:02:36.3]} 18. Rab1 {[%clk
0:02:24.1]} 18... Rfe8 {[%clk 0:02:23.8]} 19. Qxd5 {[%clk 0:01:31.2]} 19... Nxd5
{[%clk 0:02:25.7]} 20. Nc4 {[%clk 0:01:32.1]} 20... Rec8 {[%clk 0:02:01.9]} 21.
Nd6 {[%clk 0:01:25.9]} 21... Rc2 {[%clk 0:02:02.9]} 22. Ba1 {[%clk 0:01:19.5]}
22... Ra2 {[%clk 0:01:58]} 23. Nxb7 {[%clk 0:01:12.9]} 23... Rxa3 {[%clk
0:01:55.3]} 24. Nd6 {[%clk 0:01:04.5]} 24... Bxd4 {[%clk 0:01:38.7]} 25. Bxd4
{[%clk 0:01:02.1]} 25... Rb3 {[%clk 0:01:40.2]} 26. Nxe4 {[%clk 0:00:57.2]}
26... Rb8 {[%clk 0:01:34.6]} 27. Nd6 {[%clk 0:00:49.7]} 27... Rd8 {[%clk
0:01:07.6]} 28. Nc4 {[%clk 0:00:44.5]} 28... Rb8 {[%clk 0:01:03.4]} 29. b6
{[%clk 0:00:38.1]} 29... Nc3 {[%clk 0:01:01.5]} 30. Rxb3 {[%clk 0:00:33.2]}
30... Ne2+ {[%clk 0:01:02.3]} 31. Kh1 {[%clk 0:00:33.7]} 31... axb3 {[%clk
0:01:04.2]} 32. h3 {[%clk 0:00:23.8]} 32... Nxd4 {[%clk 0:00:56.7]} 33. exd4
{[%clk 0:00:23.8]} 33... b2 {[%clk 0:00:58.6]} 34. Rb1 {[%clk 0:00:20.8]} 34...
Kf8 {[%clk 0:00:54.8]} 35. Kg1 {[%clk 0:00:20.5]} 35... Ke7 {[%clk 0:00:56.1]}
36. Kf1 {[%clk 0:00:20.6]} 36... Ke6 {[%clk 0:00:54.3]} 37. Ke2 {[%clk
0:00:20.3]} 37... Nf4+ {[%clk 0:00:54.8]} 38. Kf3 {[%clk 0:00:21.4]} 38... Nd3
{[%clk 0:00:45.5]} 39. Ke3 {[%clk 0:00:21.9]} 39... Nb4 {[%clk 0:00:37.6]} 40.
Rxb2 {[%clk 0:00:22.6]} 40... Nd5+ {[%clk 0:00:39.5]} 41. Ke4 {[%clk 0:00:18.9]}
41... f5+ {[%clk 0:00:32.7]} 42. Kf3 {[%clk 0:00:19.5]} 42... Kd7 {[%clk
0:00:34.6]} 43. g3 {[%clk 0:00:17.2]} 43... Kc6 {[%clk 0:00:33.8]} 44. Ke2
{[%clk 0:00:15.5]} 44... Kb7 {[%clk 0:00:32.7]} 45. Kd3 {[%clk 0:00:12.5]} 45...
Ra8 {[%clk 0:00:33.4]} 46. Nd6+ {[%clk 0:00:12.6]} 46... Kc6 {[%clk 0:00:34.1]}
47. b7 {[%clk 0:00:08.8]} 47... Rb8 {[%clk 0:00:35.5]} 48. Nc4 {[%clk
0:00:08.2]} 48... Kc7 {[%clk 0:00:28.4]} 49. h4 {[%clk 0:00:08.9]} 49... Ne7
{[%clk 0:00:28.1]} 50. Ne5 {[%clk 0:00:09.3]} 50... Nd5 {[%clk 0:00:27.7]} 51.
Ke2 {[%clk 0:00:08]} 51... Nb6 {[%clk 0:00:28.4]} 52. Rc2+ {[%clk 0:00:08.5]}
52... Kxb7 {[%clk 0:00:29.4]} 53. Kf3 {[%clk 0:00:09.5]} 53... Rd8 {[%clk
0:00:27.9]} 54. Rd2 {[%clk 0:00:08.2]} 54... Nd5 {[%clk 0:00:28.6]} 55. g4
{[%clk 0:00:08.4]} 55... fxg4+ {[%clk 0:00:28]} 56. Kxg4 {[%clk 0:00:09.7]}
56... Rf8 {[%clk 0:00:28.7]} 57. f3 {[%clk 0:00:10.8]} 57... Kc7 {[%clk
0:00:28.4]} 58. Rc2+ {[%clk 0:00:11.4]} 58... Kd6 {[%clk 0:00:27.8]} 59. Rc6+
{[%clk 0:00:12.2]} 59... Ke7 {[%clk 0:00:29]} 60. Ra6 {[%clk 0:00:11.9]} 60...
Ne3+ {[%clk 0:00:29.4]} 61. Kg3 {[%clk 0:00:12.9]} 61... Nf5+ {[%clk 0:00:28.6]}
62. Kg4 {[%clk 0:00:13.4]} 62... Nxd4 {[%clk 0:00:30.5]} 63. Ra7+ {[%clk
0:00:13.2]} 63... Ke6 {[%clk 0:00:30.7]} 64. f4 {[%clk 0:00:11.8]} 64... Ne2
{[%clk 0:00:30.4]} 65. Ra6+ {[%clk 0:00:10.3]} 65... Kd5 {[%clk 0:00:30.3]} 66.
Nd3 {[%clk 0:00:10]} 66... Kd4 {[%clk 0:00:30.1]} 67. Rd6+ {[%clk 0:00:09.1]}
67... Ke3 {[%clk 0:00:30.1]} 68. Rd7 {[%clk 0:00:08.4]} 68... Nd4 {[%clk
0:00:31]} 69. Nc5 {[%clk 0:00:07.6]} 69... Rxf4+ {[%clk 0:00:32]} 70. Kg3 {[%clk
0:00:08.6]} 70... Ne2+ {[%clk 0:00:29.8]} 71. Kh3 {[%clk 0:00:08.4]} 71... Rf3+
{[%clk 0:00:29.7]} 72. Kh2 {[%clk 0:00:08.3]} 72... Rf2+ {[%clk 0:00:29.6]} 73.
Kh3 {[%clk 0:00:08.1]} 73... Nf4+ {[%clk 0:00:29.9]} 74. Kg4 {[%clk 0:00:04.6]}
74... Rg2# {[%clk 0:00:31.8]} 0-1

[Event "*** Titled Tuesday Blitz"]
[Site "Chess.com"]
[Date "2018.11.06"]
[Round "8"]
[White "Lagmantr"]
[Black "champ2005"]
[Result "0-1"]
[WhiteElo "2517"]
[BlackElo "2745"]
[TimeControl "180+2"]
[EndTime "14:53:45 PST"]
[Termination "champ2005 won by resignation"]

1. e4 {[%clk 0:03:01.4]} 1... c5 {[%clk 0:03:00.8]} 2. Nf3 {[%clk 0:03:02.6]}
2... d6 {[%clk 0:03:02.2]} 3. d4 {[%clk 0:03:04.1]} 3... cxd4 {[%clk 0:03:04.1]}
4. Nxd4 {[%clk 0:03:05.6]} 4... Nf6 {[%clk 0:03:05.3]} 5. Nc3 {[%clk 0:03:07.1]}
5... a6 {[%clk 0:03:06]} 6. Be3 {[%clk 0:03:08.1]} 6... e5 {[%clk 0:03:04.7]} 7.
Nb3 {[%clk 0:03:08.8]} 7... Be7 {[%clk 0:03:05.4]} 8. f3 {[%clk 0:03:06.8]} 8...
Be6 {[%clk 0:03:05.7]} 9. Qd2 {[%clk 0:03:04.6]} 9... O-O {[%clk 0:03:06.5]} 10.
O-O-O {[%clk 0:03:04.5]} 10... Nbd7 {[%clk 0:03:06.8]} 11. g4 {[%clk 0:03:05.2]}
11... b5 {[%clk 0:03:07.9]} 12. g5 {[%clk 0:03:06.3]} 12... b4 {[%clk
0:03:06.2]} 13. Ne2 {[%clk 0:03:04.8]} 13... Ne8 {[%clk 0:03:05.1]} 14. f4
{[%clk 0:03:04.7]} 14... a5 {[%clk 0:03:04.6]} 15. f5 {[%clk 0:03:05.7]} 15...
a4 {[%clk 0:03:05.9]} 16. Nbd4 {[%clk 0:03:06.9]} 16... exd4 {[%clk 0:03:00.6]}
17. Nxd4 {[%clk 0:03:08.1]} 17... b3 {[%clk 0:02:52.6]} 18. Kb1 {[%clk
0:03:08.6]} 18... bxc2+ {[%clk 0:02:47.9]} 19. Nxc2 {[%clk 0:03:10.5]} 19... Bb3
{[%clk 0:02:38.7]} 20. axb3 {[%clk 0:03:11.5]} 20... axb3 {[%clk 0:02:40.1]} 21.
Na3 {[%clk 0:03:12.9]} 21... Ne5 {[%clk 0:02:32.9]} 22. h4 {[%clk 0:02:53.7]}
22... Nc7 {[%clk 0:02:30.2]} 23. f6 {[%clk 0:02:35.1]} 23... gxf6 {[%clk
0:02:31.2]} 24. gxf6 {[%clk 0:02:37]} 24... Bxf6 {[%clk 0:02:32.3]} 25. Rg1+
{[%clk 0:02:20.3]} 25... Kh8 {[%clk 0:02:30.6]} 26. Qxd6 {[%clk 0:02:20.6]}
26... Ne6 {[%clk 0:02:20.1]} 27. Qxd8 {[%clk 0:02:07.4]} 27... Rfxd8 {[%clk
0:02:20.5]} 28. Bh3 {[%clk 0:01:55.5]} 28... Nd3 {[%clk 0:01:55.6]} 29. Bxe6
{[%clk 0:01:40.2]} 29... fxe6 {[%clk 0:01:53.3]} 30. Bg5 {[%clk 0:01:39.1]}
30... Bxg5 {[%clk 0:01:37.7]} 31. hxg5 {[%clk 0:01:41]} 31... Ne5 {[%clk
0:01:34.5]} 32. Rxd8+ {[%clk 0:01:33.1]} 32... Rxd8 {[%clk 0:01:35.3]} 33. Nb5
{[%clk 0:01:27.3]} 33... Nf3 {[%clk 0:01:34.5]} 34. Rh1 {[%clk 0:01:09.6]} 34...
Nxg5 {[%clk 0:01:34.1]} 35. Nc3 {[%clk 0:01:05.2]} 35... Nf3 {[%clk 0:01:33]}
36. Kc1 {[%clk 0:01:03.5]} 36... Kg7 {[%clk 0:01:23.1]} 37. Rh3 {[%clk
0:01:02.6]} 37... Ne5 {[%clk 0:01:23.8]} 38. Ne2 {[%clk 0:00:36.2]} 38... Nd3+
{[%clk 0:01:18.4]} 39. Kb1 {[%clk 0:00:37.1]} 39... Nc5 {[%clk 0:01:19.1]} 40.
Nc1 {[%clk 0:00:33.8]} 40... Rd1 {[%clk 0:01:06.2]} 41. Rc3 {[%clk 0:00:15.2]}
41... Nxe4 {[%clk 0:00:55.3]} 42. Rxb3 {[%clk 0:00:16.2]} 42... Rd7 {[%clk
0:00:27.9]} 43. Re3 {[%clk 0:00:15.3]} 43... Ng5 {[%clk 0:00:24.8]} 44. b4
{[%clk 0:00:16.2]} 44... Rb7 {[%clk 0:00:22.6]} 45. Rb3 {[%clk 0:00:17.6]} 45...
h5 {[%clk 0:00:23.4]} 46. b5 {[%clk 0:00:18.9]} 46... h4 {[%clk 0:00:24.4]} 47.
Nd3 {[%clk 0:00:20.2]} 47... h3 {[%clk 0:00:23.4]} 48. Nf2 {[%clk 0:00:20.6]}
48... h2 {[%clk 0:00:24]} 49. Kc2 {[%clk 0:00:21.6]} 49... Ne4 {[%clk
0:00:19.3]} 50. Nh1 {[%clk 0:00:21.8]} 50... Kf6 {[%clk 0:00:16.1]} 51. Rh3
{[%clk 0:00:22.5]} 51... Rxb5 {[%clk 0:00:13.1]} 52. Rxh2 {[%clk 0:00:23.6]}
52... Ra5 {[%clk 0:00:13.1]} 53. Kd3 {[%clk 0:00:23.6]} 53... Ng5 {[%clk
0:00:13.4]} 54. Rf2+ {[%clk 0:00:23.8]} 54... Ke5 {[%clk 0:00:14]} 55. Re2+
{[%clk 0:00:24.8]} 55... Kf4 {[%clk 0:00:14.5]} 56. Rf2+ {[%clk 0:00:25.4]}
56... Kg4 {[%clk 0:00:15.9]} 57. Rg2+ {[%clk 0:00:26.3]} 57... Kh3 {[%clk
0:00:16.3]} 58. Re2 {[%clk 0:00:21.6]} 58... Kg4 {[%clk 0:00:12.4]} 59. Rg2+
{[%clk 0:00:22]} 59... Kf4 {[%clk 0:00:12.3]} 60. Rf2+ {[%clk 0:00:22.9]} 60...
Nf3 {[%clk 0:00:13.4]} 61. Ke2 {[%clk 0:00:20.4]} 61... Re5+ {[%clk 0:00:13.4]}
62. Kd3 {[%clk 0:00:20.7]} 62... Re1 {[%clk 0:00:13.8]} 63. Re2 {[%clk
0:00:17.7]} 63... Rd1+ {[%clk 0:00:11.3]} 64. Kc4 {[%clk 0:00:18.5]} 64... Ne5+
{[%clk 0:00:09.5]} 65. Rxe5 {[%clk 0:00:19.5]} 65... Kxe5 {[%clk 0:00:10.2]} 66.
Nf2 {[%clk 0:00:20.9]} 66... Rd5 {[%clk 0:00:10.4]} 67. Nd3+ {[%clk 0:00:21.5]}
67... Rxd3 {[%clk 0:00:10.4]} 68. Kxd3 {[%clk 0:00:22.4]} 68... Kf4 {[%clk
0:00:11.9]} 69. Kd2 {[%clk 0:00:23]} 69... Kf3 {[%clk 0:00:12.8]} 70. Kd1 {[%clk
0:00:23.5]} 70... Kf2 {[%clk 0:00:13.3]} 71. Kd2 {[%clk 0:00:24.8]} 71... e5
{[%clk 0:00:14.6]} 72. Kd3 {[%clk 0:00:26.2]} 72... Kf3 {[%clk 0:00:15.8]} 73.
Kd2 {[%clk 0:00:27.8]} 73... e4 {[%clk 0:00:17.2]} 74. Kd1 {[%clk 0:00:28.4]}
0-1